bitfinex/quotes_BTCUSD_20240831
["timestamp","ask_amount","ask_price","bid_price","bid_amount"]
[1725126238791,1.4627691,59100.0,59099.0,0.0078998]
[1725126239219,1.4627691,59100.0,59099.0,0.0118998]
[1725126239220,1.8011781,59100.0,59099.0,0.0118998]
[1725126239435,1.94745501,59100.0,59099.0,0.0078998]
[1725126239652,1.9651712,59100.0,59099.0,0.0078998]
[1725126239862,1.9651712,59100.0,59099.0,0.0058998]
[1725126240302,1.9651712,59100.0,59099.0,0.0118998]
[1725126240526,1.81889429,59100.0,59099.0,0.0118998]
[1725126240741,1.81889429,59100.0,59099.0,0.0058998]
[1725126241170,1.81889429,59100.0,59099.0,0.0128998]
[1725126244045,1.79234536,59100.0,59099.0,0.0128998]
[1725126244283,1.95263536,59100.0,59099.0,0.0128998]
[1725126247305,1.97918707,59100.0,59099.0,0.0128998]
[1725126247957,2.31759607,59100.0,59099.0,0.0128998]
[1725126248161,1.97918707,59100.0,59099.0,0.0128998]
[1725126248371,1.94615307,59100.0,59099.0,0.0128998]
[1725126248578,1.81889707,59100.0,59099.0,0.0128998]
[1725126249216,2.14458407,59100.0,59099.0,0.0128998]
[1725126250074,2.25646354,59100.0,59099.0,0.0128998]
[1725126250713,2.09841036,59100.0,59099.0,0.0128998]
[1725126250956,1.95963836,59100.0,59099.0,0.0128998]
[1725126252266,1.79234536,59100.0,59099.0,0.0128998]
[1725126252476,2.11203536,59100.0,59099.0,0.0128998]
[1725126254028,2.13858757,59100.0,59099.0,0.0128998]
[1725126255085,2.30713921,59100.0,59099.0,0.0128998]
[1725126257453,2.47699657,59100.0,59099.0,0.0128998]
[1725126257791,2.13858757,59100.0,59099.0,0.0128998]
[1725126260294,2.12212857,59100.0,59099.0,0.0128998]
[1725126261802,2.09557636,59100.0,59099.0,0.0128998]
[1725126262446,1.71674536,59100.0,59099.0,0.0128998]
[1725126263792,1.65314536,59100.0,59099.0,0.0128998]
[1725126265113,1.6796974,59100.0,59099.0,0.0128998]
[1725126265772,1.7424974,59100.0,59099.0,0.0128998]
[1725126267726,1.71594536,59100.0,59099.0,0.0128998]
[1725126269412,2.05435436,59100.0,59099.0,0.0128998]
[1725126269607,2.83576815,59100.0,59099.0,0.0128998]
[1725126270252,2.792629,59100.0,59099.0,0.0128998]
[1725126270922,2.81918172,59100.0,59099.0,0.0128998]
[1725126271132,2.81918172,59100.0,59099.0,0.0058998]
[1725126271967,2.35606008,59100.0,59099.0,0.0058998]
[1725126272177,2.35606008,59100.0,59099.0,0.0098998]
[1725126272798,2.35606008,59100.0,59099.0,0.0048998]
[1725126273003,2.35606008,59100.0,59099.0,0.0058998]
[1725126275625,2.01778579,59100.0,59099.0,0.0058998]
[1725126276694,2.35619479,59100.0,59099.0,0.0058998]
[1725126277153,2.59417825,59100.0,59099.0,0.0058998]
[1725126277572,2.22921653,59100.0,59099.0,0.0058998]
[1725126278213,1.72170753,59100.0,59099.0,0.0058998]
[1725126278433,1.65890753,59100.0,59099.0,0.0058998]
[1725126279306,1.65890753,59100.0,59099.0,0.0715998]
[1725126283373,1.68545902,59100.0,59099.0,0.0715998]
[1725126287703,1.65890753,59100.0,59099.0,0.0715998]
[1725126290813,1.685459,59100.0,59099.0,0.0715998]
[1725126293592,1.685459,59100.0,59099.0,0.0058998]
[1725126294526,1.73901776,59100.0,59099.0,0.0058998]
[1725126295614,1.685459,59100.0,59099.0,0.0058998]
[1725126297719,1.65890753,59100.0,59099.0,0.0058998]
[1725126300337,1.76444668,59100.0,59099.0,0.0058998]
[1725126300569,2.52352553,59100.0,59099.0,0.0058998]
[1725126300819,2.35432125,59100.0,59099.0,0.0058998]
[1725126301036,2.55007778,59100.0,59099.0,0.0058998]
[1725126301252,2.08257978,59100.0,59099.0,0.0058998]
[1725126301474,2.01523278,59100.0,59099.0,0.0058998]
[1725126301941,1.99430978,59100.0,59099.0,0.0008998]
[1725126302194,1.99730978,59100.0,59099.0,0.0008998]
[1725126302414,1.99930978,59100.0,59099.0,0.0008998]
[1725126302882,1.99252365,59100.0,59099.0,0.0008998]
[1725126303097,1.99452365,59100.0,59099.0,0.0008998]
[1725126303959,1.74807365,59100.0,59099.0,0.0008998]
[1725126304143,2.18598765,59100.0,59099.0,0.0008998]
[1725126307771,2.15943512,59100.0,59099.0,0.0008998]
[1725126308045,2.13844412,59100.0,59099.0,0.0008998]
[1725126309602,1.72152112,59100.0,59099.0,0.0008998]
[1725126310463,1.65912112,59100.0,59099.0,0.0008998]
[1725126311098,1.6856741,59100.0,59099.0,0.0008998]
[1725126311526,1.522867,59099.0,59098.0,0.0007996]
[1725126311741,1.622867,59099.0,59098.0,0.0007996]
[1725126312188,1.63547236,59099.0,59098.0,0.0007996]
[1725126312640,1.63747236,59099.0,59098.0,0.0007996]
[1725126312852,1.64047236,59099.0,59098.0,0.0007996]
[1725126313066,1.63747236,59099.0,59098.0,0.0007996]
[1725126313523,1.64047236,59099.0,59098.0,0.0007996]
[1725126313704,1.63747236,59099.0,59098.0,0.0007996]
[1725126313968,1.63547236,59099.0,59098.0,0.0007996]
[1725126314205,1.63847236,59099.0,59098.0,0.0007996]
[1725126314445,1.64047236,59099.0,59098.0,0.0007996]
[1725126314908,1.63847236,59099.0,59098.0,0.0007996]
[1725126315780,1.80417302,59099.0,59098.0,0.0007996]
[1725126316046,2.41540602,59099.0,59098.0,0.0007996]
[1725126316755,2.15932802,59099.0,59098.0,0.0007996]
[1725126317197,2.20751938,59099.0,59098.0,0.0007996]
[1725126320787,2.18096612,59099.0,59098.0,0.0007996]
[1725126321246,2.68859612,59099.0,59098.0,0.0007996]
[1725126321721,3.02701112,59099.0,59098.0,0.0007996]
[1725126322168,3.53511312,59099.0,59098.0,0.0007996]
[1725126322387,3.60141312,59099.0,59098.0,0.0007996]
[1725126322571,3.68331312,59099.0,59098.0,0.0007996]
[1725126322825,3.68631312,59099.0,59098.0,0.0007996]
[1725126323487,3.68331312,59099.0,59098.0,0.0007996]
[1725126323703,3.68631312,59099.0,59098.0,0.0007996]
[1725126323913,3.68831312,59099.0,59098.0,0.0007996]
[1725126324142,3.71486773,59099.0,59098.0,0.0007996]
[1725126325479,3.71568573,59099.0,59098.0,0.0007996]
[1725126327703,3.73227027,59099.0,59098.0,0.0007996]
[1725126327921,3.68913112,59099.0,59098.0,0.0007996]
[1725126330993,3.71568594,59099.0,59098.0,0.0007996]
[1725126333817,3.68913112,59099.0,59098.0,0.0007996]
[1725126335273,3.68713112,59099.0,59098.0,0.0007996]
[1725126335519,3.44153046,59099.0,59098.0,0.0007996]
[1725126335763,3.37723046,59099.0,59098.0,0.0007996]
[1725126336006,3.22027846,59099.0,59098.0,0.0007996]
[1725126337139,3.24683325,59099.0,59098.0,0.0007996]
[1725126338556,3.41538489,59099.0,59098.0,0.0007996]
[1725126340212,2.76997989,59099.0,59098.0,0.0007996]
[1725126340459,3.89310489,59099.0,59098.0,0.0007996]
[1725126341023,3.89106828,59099.0,59098.0,0.0007996]
[1725126341442,3.86451349,59099.0,59098.0,0.0007996]
[1725126342545,3.69596185,59099.0,59098.0,0.0007996]
[1725126344541,3.72251695,59099.0,59098.0,0.0007996]
[1725126346297,3.8479561,59099.0,59098.0,0.0007996]
[1725126346550,3.8599561,59099.0,59098.0,0.0007996]
[1725126347001,3.81681695,59099.0,59098.0,0.0007996]
[1725126347215,3.98336859,59099.0,59098.0,0.0007996]
[1725126347429,3.95681349,59099.0,59098.0,0.0007996]
[1725126347655,3.95881349,59099.0,59098.0,0.0017996]
[1725126348107,3.95881349,59099.0,59098.0,0.0007996]
[1725126348108,3.95681349,59099.0,59098.0,0.0007996]
[1725126348334,3.95881349,59099.0,59098.0,0.0017996]
[1725126348570,3.95581349,59099.0,59098.0,0.0017996]
[1725126348799,3.96581349,59099.0,59098.0,0.0027996]
[1725126349235,3.95581349,59099.0,59098.0,0.0017996]
[1725126349447,3.96481349,59099.0,59098.0,0.0017996]
[1725126349683,3.96481349,59099.0,59098.0,0.0007996]
[1725126349885,3.97081349,59099.0,59098.0,0.0017996]
[1725126350591,3.97581349,59099.0,59098.0,0.0017996]
[1725126350810,4.00236908,59099.0,59098.0,0.0027996]
[1725126351022,4.04039213,59099.0,59098.0,0.0027996]
[1725126351261,5.09891113,59099.0,59098.0,0.0027996]
[1725126352170,4.86739713,59099.0,59098.0,0.0027996]
[1725126363918,4.84084154,59099.0,59098.0,0.0027996]
[1725126365613,4.84084154,59099.0,59090.0,0.0653]
[1725126365614,1.523074,59091.0,59090.0,0.0653]
[1725126365765,1.523074,59091.0,59083.0,0.0008998]
[1725126365766,0.17425,59084.0,59083.0,0.0008998]
[1725126365987,3.616319,59084.0,59083.0,0.0008998]
[1725126366199,4.142116,59084.0,59083.0,0.0008998]
[1725126366428,4.59216545,59084.0,59083.0,0.0008998]
[1725126366894,4.59216545,59084.0,59076.0,0.0008998]
[1725126366895,1.262493,59077.0,59076.0,0.0008998]
[1725126367107,7.156664,59077.0,59076.0,0.0008998]
[1725126367322,3.7058285,59077.0,59076.0,0.0008998]
[1725126367529,3.9968935,59077.0,59076.0,0.0008998]
[1725126367740,3.6637185,59077.0,59076.0,0.0008998]
[1725126367964,2.6494745,59077.0,59076.0,0.0008998]
[1725126368417,2.7444745,59077.0,59076.0,0.0008998]
[1725126369322,2.7674745,59077.0,59076.0,0.0028998]
[1725126369552,2.7674745,59077.0,59076.0,0.0018998]
[1725126369765,2.2574765,59077.0,59076.0,0.0018998]
[1725126369980,2.9472195,59077.0,59076.0,0.0018998]
[1725126370200,2.9542195,59077.0,59076.0,0.0028998]
[1725126370858,2.98078452,59077.0,59076.0,0.0028998]
[1725126371067,3.0018076,59077.0,59076.0,0.0028998]
[1725126373001,3.17535924,59077.0,59076.0,0.0028998]
[1725126373209,3.17535924,59077.0,59067.0,0.0808]
[1725126373210,1.199953,59074.0,59067.0,0.0808]
[1725126373496,5.039902,59074.0,59067.0,0.1409]
[1725126373706,2.1595629,59074.0,59067.0,0.1409]
[1725126373915,4.88417776,59074.0,59067.0,0.1409]
[1725126374108,4.67417776,59074.0,59067.0,0.0601]
[1725126374318,4.30741576,59074.0,59067.0,0.0601]
[1725126374537,2.1445629,59074.0,59073.0,0.0609998]
[1725126374942,2.1535629,59074.0,59073.0,0.0609998]
[1725126378730,2.1535629,59074.0,59073.0,0.1408998]
[1725126379141,1.8150049,59074.0,59073.0,0.1408998]
[1725126379571,1.98355654,59074.0,59073.0,0.1408998]
[1725126380274,1.8150049,59074.0,59073.0,0.1408998]
[1725126381006,1.84156835,59074.0,59073.0,0.1408998]
[1725126381888,1.85929181,59074.0,59073.0,0.1408998]
[1725126382367,3.18113781,59074.0,59073.0,0.0008998]
[1725126382590,3.21456145,59074.0,59073.0,0.0008998]
[1725126383680,3.187998,59074.0,59073.0,0.0008998]
[1725126383896,2.729889,59074.0,59073.0,0.0008998]
[1725126384096,2.606988,59074.0,59073.0,0.0008998]
[1725126385650,2.43843636,59074.0,59073.0,0.0008998]
[1725126387083,2.44727773,59074.0,59073.0,0.0008998]
[1725126387324,2.4207129,59074.0,59073.0,0.0008998]
[1725126388240,2.9037709,59074.0,59073.0,8e-07]
[1725126388488,2.69093768,59074.0,59073.0,8e-07]
[1725126388935,1.523745,59065.0,59064.0,0.0059411]
[1725126389176,3.427449,59065.0,59064.0,0.0059411]
[1725126389422,3.20959304,59065.0,59064.0,0.0059411]
[1725126389907,3.11878604,59065.0,59064.0,0.0059411]
[1725126390143,3.28733768,59065.0,59064.0,0.0059411]
[1725126391634,4.46520168,59065.0,59064.0,0.0059411]
[1725126391855,4.48292514,59065.0,59064.0,0.0059411]
[1725126392078,3.57503414,59065.0,59064.0,0.0059411]
[1725126393296,3.60160313,59065.0,59064.0,0.0059411]
[1725126393525,3.56741413,59065.0,59064.0,0.0059411]
[1725126393768,3.24365113,59065.0,59064.0,0.0059411]
[1725126394226,3.24365113,59065.0,59064.0,0.0089411]
[1725126395870,3.24365113,59065.0,59064.0,0.009842]
[1725126396333,3.26563977,59065.0,59064.0,0.009842]
[1725126396615,3.32663977,59065.0,59064.0,0.009842]
[1725126396839,3.40513977,59065.0,59064.0,0.009842]
[1725126397062,3.32663977,59065.0,59064.0,0.009842]
[1725126399814,3.33663977,59065.0,59064.0,0.006842]
[1725126400027,3.32663977,59065.0,59064.0,0.006842]
[1725126400265,3.33363977,59065.0,59064.0,0.006842]
[1725126400747,3.32663977,59065.0,59064.0,0.006842]
[1725126400974,3.33363977,59065.0,59064.0,0.006842]
[1725126401447,3.34363977,59065.0,59064.0,0.006842]
[1725126401916,3.68724977,59065.0,59064.0,0.006842]
[1725126404006,2.205997,59064.0,59063.0,0.1]
[1725126404300,0.851567,59062.0,59054.0,0.0648]
[1725126404535,2.136451,59062.0,59054.0,0.0648]
[1725126404765,4.8507157,59062.0,59054.0,0.0648]
[1725126405015,5.35789434,59062.0,59054.0,0.0648]
[1725126405246,4.6784027,59062.0,59054.0,0.0648]
[1725126405500,5.0188467,59062.0,59054.0,0.0648]
[1725126405741,4.6532827,59062.0,59054.0,0.0648]
[1725126406198,3.9332207,59062.0,59054.0,0.0648]
[1725126406656,3.9352207,59062.0,59054.0,0.0648]
[1725126406869,3.9332207,59062.0,59054.0,0.0648]
[1725126407104,3.9372207,59062.0,59054.0,0.0648]
[1725126409003,4.11577234,59062.0,59054.0,0.0648]
[1725126409488,4.11777234,59062.0,59054.0,0.0648]
[1725126410185,1.862762,59052.0,59051.0,0.008998]
[1725126410399,3.420423,59052.0,59051.0,0.008998]
[1725126410615,3.15514864,59052.0,59051.0,0.008998]
[1725126410833,3.18386682,59052.0,59051.0,0.008998]
[1725126411503,2.97524118,59052.0,59051.0,0.008998]
[1725126411725,2.86305718,59052.0,59051.0,0.008998]
[1725126412394,2.86405718,59052.0,59051.0,0.013998]
[1725126413484,2.86305718,59052.0,59051.0,0.008998]
[1725126413711,2.86505718,59052.0,59051.0,0.008998]
[1725126414141,3.03260882,59052.0,59051.0,0.008998]
[1725126414565,3.03760882,59052.0,59051.0,0.008998]
[1725126414779,3.03260882,59052.0,59051.0,0.008998]
[1725126415002,2.94643664,59052.0,59051.0,0.008998]
[1725126415231,2.88843664,59052.0,59051.0,0.008998]
[1725126415458,3.46979864,59052.0,59051.0,0.008998]
[1725126415700,3.47179864,59052.0,59051.0,0.008998]
[1725126415932,2.97791964,59052.0,59051.0,0.008998]
[1725126419192,2.18880564,59052.0,59051.0,0.149298]
[1725126420490,1.85012164,59052.0,59051.0,0.154298]
[1725126420935,1.75012164,59052.0,59051.0,0.154298]
[1725126421371,1.74512164,59052.0,59051.0,0.154298]
[1725126421597,1.74312164,59052.0,59051.0,0.154298]
[1725126421852,0.70569018,59052.0,59051.0,0.157298]
[1725126422103,0.53634818,59052.0,59051.0,0.180298]
[1725126422332,0.53634818,59052.0,59051.0,0.346643]
[1725126422776,0.53734818,59052.0,59051.0,0.351643]
[1725126422987,0.55392228,59052.0,59051.0,0.182298]
[1725126423196,0.56394784,59052.0,59051.0,0.346643]
[1725126423430,0.56394784,59052.0,59051.0,0.685333]
[1725126423643,0.54622438,59052.0,59051.0,1.024023]
[1725126424071,0.47962438,59052.0,59051.0,1.024023]
[1725126424736,0.48062438,59052.0,59051.0,1.029023]
[1725126425229,0.41402438,59052.0,59051.0,1.029023]
[1725126425687,0.03959438,59052.0,59051.0,0.690333]
[1725126426141,0.02856882,59052.0,59051.0,0.690333]
[1725126426384,0.03899178,59052.0,59051.0,0.690333]
[1725126426887,0.20833378,59052.0,59051.0,0.182298]
[1725126427129,0.18176496,59052.0,59051.0,0.182298]
[1725126427884,0.52044896,59052.0,59051.0,0.182298]
[1725126429302,0.18176496,59052.0,59051.0,0.182298]
[1725126429803,0.01242296,59052.0,59051.0,0.351643]
[1725126430073,0.01242296,59052.0,59051.0,1.029023]
[1725126430288,0.002,59052.0,59051.0,1.029023]
[1725126430761,0.002,59052.0,59051.0,0.690333]
[1725126431437,0.002,59052.0,59051.0,0.351643]
[1725126431673,0.002,59052.0,59051.0,0.182298]
[1725126431912,0.01241841,59052.0,59051.0,0.182298]
[1725126432139,0.002,59052.0,59051.0,0.182298]
[1725126432393,0.01241841,59052.0,59051.0,0.182298]
[1725126432611,0.002,59052.0,59051.0,0.182298]
[1725126432848,0.01241841,59052.0,59051.0,0.182298]
[1725126433080,0.002,59052.0,59051.0,0.182298]
[1725126433300,0.01241844,59052.0,59051.0,0.182298]
[1725126433523,0.02856713,59052.0,59051.0,0.182298]
[1725126433746,0.03898554,59052.0,59051.0,0.182298]
[1725126438813,0.20832754,59052.0,59051.0,0.182298]
[1725126439066,0.03898554,59052.0,59051.0,0.182298]
[1725126440260,0.20832754,59052.0,59051.0,0.182298]
[1725126441388,0.54701154,59052.0,59051.0,0.182298]
[1725126443992,0.20832754,59052.0,59051.0,0.182298]
[1725126444220,0.20628965,59052.0,59051.0,0.182298]
[1725126445138,0.20710865,59052.0,59051.0,0.182298]
[1725126445384,0.54579265,59052.0,59051.0,0.117298]
[1725126445634,0.54579265,59052.0,59051.0,0.041998]
[1725126445882,0.20710865,59052.0,59051.0,0.041998]
[1725126446621,0.54579265,59052.0,59051.0,0.041998]
[1725126447538,0.88447665,59052.0,59051.0,0.041998]
[1725126447778,0.54579265,59052.0,59051.0,0.041998]
[1725126449465,0.54579265,59052.0,59051.0,0.018998]
[1725126449466,0.85794741,59052.0,59051.0,0.018998]
[1725126449695,1.02304741,59052.0,59051.0,0.018998]
[1725126449894,1.36173141,59052.0,59051.0,0.018998]
[1725126450448,1.36173141,59052.0,59051.0,0.013998]
[1725126450682,1.36273141,59052.0,59051.0,0.019998]
[1725126451149,1.36173141,59052.0,59051.0,0.013998]
[1725126451375,1.36273141,59052.0,59051.0,0.019998]
[1725126451845,1.36373141,59052.0,59051.0,0.021998]
[1725126452082,1.36273141,59052.0,59051.0,0.019998]
[1725126452310,1.36273141,59052.0,59051.0,0.021998]
[1725126452311,1.36373141,59052.0,59051.0,0.021998]
[1725126453578,1.19435149,59052.0,59051.0,0.021998]
[1725126453806,1.36369349,59052.0,59051.0,0.021998]
[1725126454024,1.36369349,59052.0,59051.0,0.016998]
[1725126454659,1.36369349,59052.0,59051.0,0.021998]
[1725126458244,1.29859349,59052.0,59051.0,0.021998]
[1725126460634,1.36339349,59052.0,59051.0,0.021998]
[1725126461066,1.36339349,59052.0,59051.0,0.016998]
[1725126461508,1.38111695,59052.0,59051.0,0.016998]
[1725126464028,1.71980095,59052.0,59051.0,0.016998]
[1725126464275,1.38111695,59052.0,59051.0,0.016998]
[1725126468807,1.38376997,59052.0,59051.0,0.016998]
[1725126471548,1.38376997,59052.0,59051.0,0.021998]
[1725126476433,1.38295097,59052.0,59051.0,0.021998]
[1725126477327,0.97946697,59052.0,59051.0,0.021998]
[1725126479441,0.97846697,59052.0,59051.0,0.015998]
[1725126479673,0.97846697,59052.0,59051.0,0.018998]
[1725126479893,0.64078297,59052.0,59051.0,0.020998]
[1725126480110,0.63978297,59052.0,59051.0,0.077998]
[1725126480544,0.97928597,59052.0,59051.0,0.077998]
[1725126480776,0.98028597,59052.0,59051.0,0.082998]
[1725126481530,0.98028597,59052.0,59051.0,0.020998]
[1725126481980,0.64160197,59052.0,59051.0,0.020998]
[1725126482192,0.13357597,59052.0,59051.0,0.101398]
[1725126482405,0.13357597,59052.0,59051.0,0.163398]
[1725126482406,0.03357597,59052.0,59051.0,0.163398]
[1725126482630,0.03357597,59052.0,59051.0,0.16678453]
[1725126483093,0.20291797,59052.0,59051.0,0.163398]
[1725126483332,0.20291797,59052.0,59051.0,0.101398]
[1725126483333,0.64160197,59052.0,59051.0,0.101398]
[1725126484200,0.98028597,59052.0,59051.0,0.101398]
[1725126485071,0.64160197,59052.0,59051.0,0.101398]
[1725126489200,0.30291797,59052.0,59051.0,0.101398]
[1725126491207,0.64160197,59052.0,59051.0,0.101398]
[1725126491858,0.64160197,59052.0,59051.0,0.020998]
[1725126492518,0.98028597,59052.0,59051.0,0.020998]
[1725126494934,1.04138597,59052.0,59051.0,0.020998]
[1725126497708,1.38006997,59052.0,59051.0,0.020998]
[1725126498798,1.31896997,59052.0,59051.0,0.020998]
[1725126499276,0.98028597,59052.0,59051.0,0.103898]
[1725126506490,0.64160197,59052.0,59051.0,0.103898]
[1725126510042,0.13357597,59052.0,59051.0,0.296243]
[1725126510492,0.13357597,59052.0,59051.0,0.126898]
[1725126510705,0.03357597,59052.0,59051.0,0.126898]
[1725126513318,0.20291797,59052.0,59051.0,0.126898]
[1725126513541,0.30291797,59052.0,59051.0,0.126898]
[1725126514403,0.98028597,59052.0,59051.0,0.020998]
[1725126514619,1.04138597,59052.0,59051.0,0.020998]
[1725126515819,1.38006997,59052.0,59051.0,0.020998]
[1725126517558,1.37647719,59052.0,59051.0,0.020998]
[1725126518437,1.39824088,59052.0,59051.0,0.020998]
[1725126520255,1.37647719,59052.0,59051.0,0.020998]
[1725126523462,1.45697719,59052.0,59051.0,0.020998]
[1725126524173,1.45697719,59052.0,59051.0,0.015998]
[1725126524863,1.79566119,59052.0,59051.0,0.015998]
[1725126525777,1.79566119,59052.0,59051.0,0.020998]
[1725126526242,1.7912079,59052.0,59051.0,0.020998]
[1725126526458,1.77793773,59052.0,59051.0,0.020998]
[1725126526686,1.77693773,59052.0,59051.0,0.018998]
[1725126526892,1.77693773,59052.0,59051.0,0.020998]
[1725126527529,1.77593773,59052.0,59051.0,0.015998]
[1725126527739,1.77693773,59052.0,59051.0,0.019998]
[1725126528394,1.77593773,59052.0,59051.0,0.015998]
[1725126528607,1.77693773,59052.0,59051.0,0.019998]
[1725126531238,1.77693773,59052.0,59051.0,0.014998]
[1725126532992,2.43400503,59052.0,59051.0,0.014998]
[1725126533937,2.43300503,59052.0,59051.0,0.008998]
[1725126534164,2.43300503,59052.0,59051.0,0.009998]
[1725126534165,2.32332173,59052.0,59051.0,0.009998]
[1725126534379,2.32532173,59052.0,59051.0,0.009998]
[1725126534596,2.32332173,59052.0,59051.0,0.008998]
[1725126535042,2.32532173,59052.0,59051.0,0.008998]
[1725126535978,2.32932173,59052.0,59051.0,0.008998]
[1725126538583,2.49787337,59052.0,59051.0,0.008998]
[1725126538798,2.32932173,59052.0,59051.0,0.008998]
[1725126541996,2.34704519,59052.0,59051.0,0.008998]
[1725126542668,2.09166425,59052.0,59051.0,0.008998]
[1725126542896,2.26100625,59052.0,59051.0,0.008998]
[1725126543123,1.524208,59047.0,59046.0,0.008998]
[1725126543367,2.828038,59047.0,59046.0,0.008998]
[1725126543613,2.489325,59047.0,59046.0,0.008998]
[1725126543829,2.49789446,59047.0,59046.0,0.008998]
[1725126544315,2.59789446,59047.0,59046.0,0.008998]
[1725126544533,2.59789446,59047.0,59046.0,0.012998]
[1725126544534,2.80876288,59047.0,59046.0,0.012998]
[1725126544779,2.69789446,59047.0,59046.0,0.012998]
[1725126545250,3.03660746,59047.0,59046.0,0.012998]
[1725126546447,2.69789446,59047.0,59046.0,0.008998]
[1725126546891,2.71089446,59047.0,59046.0,0.008998]
[1725126547402,2.70589446,59047.0,59046.0,0.008998]
[1725126547623,1.79807746,59047.0,59046.0,0.008998]
[1725126547816,2.03621746,59047.0,59046.0,0.008998]
[1725126548104,2.04121746,59047.0,59046.0,0.008998]
[1725126548329,2.03821746,59047.0,59046.0,0.008998]
[1725126548835,2.05989553,59047.0,59046.0,0.008998]
[1725126549301,1.81675553,59047.0,59046.0,0.008998]
[1725126549515,1.81875553,59047.0,59046.0,0.008998]
[1725126549782,1.82175553,59047.0,59046.0,0.008998]
[1725126550262,1.81875553,59047.0,59046.0,0.008998]
[1725126550485,1.81875553,59047.0,59046.0,0.009998]
[1725126551678,1.75645553,59047.0,59046.0,0.009998]
[1725126554217,1.74788607,59047.0,59046.0,0.009998]
[1725126559378,1.74788607,59047.0,59046.0,0.156498]
[1725126559379,1.30917307,59047.0,59046.0,0.156498]
[1725126559866,1.30917307,59047.0,59046.0,0.095098]
[1725126560562,1.30917307,59047.0,59046.0,0.014998]
[1725126561030,1.40917307,59047.0,59046.0,0.014998]
[1725126561526,1.47057307,59047.0,59046.0,0.014998]
[1725126562185,1.47843759,59047.0,59046.0,0.014998]
[1725126563165,1.41703759,59047.0,59046.0,0.014998]
[1725126569923,1.41703759,59047.0,59046.0,0.00643673]
[1725126570110,1.47843759,59047.0,59046.0,0.00643673]
[1725126573253,1.81715059,59047.0,59046.0,0.00143673]
[1725126574326,1.88371609,59047.0,59046.0,0.00143673]
[1725126575030,1.81715059,59047.0,59046.0,0.00143673]
[1725126575666,1.81934815,59047.0,59046.0,0.00143673]
[1725126577238,1.75794815,59047.0,59046.0,0.00143673]
[1725126579440,1.41923515,59047.0,59046.0,0.06953673]
[1725126580383,1.48153515,59047.0,59046.0,0.00643673]
[1725126583964,1.48235315,59047.0,59046.0,0.00643673]
[1725126585137,1.48235315,59047.0,59046.0,0.00143673]
[1725126586058,1.82106615,59047.0,59046.0,0.00143673]
[1725126586291,1.98961779,59047.0,59046.0,0.00143673]
[1725126586767,2.06941779,59047.0,59046.0,0.00143673]
[1725126587001,1.90086615,59047.0,59046.0,0.00143673]
[1725126588396,2.23957915,59047.0,59046.0,0.00143673]
[1725126588644,3.01054615,59047.0,59046.0,0.00143673]
[1725126588895,2.78125715,59047.0,59046.0,0.00143673]
[1725126589362,2.76088115,59047.0,59046.0,0.00143673]
[1725126589584,2.92943279,59047.0,59046.0,0.00143673]
[1725126590018,2.93143279,59047.0,59046.0,0.00143673]
[1725126590455,2.92943279,59047.0,59046.0,0.00143673]
[1725126591545,3.94430579,59047.0,59046.0,0.00143673]
[1725126591849,3.94430579,59047.0,59046.0,0.00043673]
[1725126592087,3.94930579,59047.0,59046.0,0.00043673]
[1725126592548,3.94430579,59047.0,59046.0,0.00043673]
[1725126592958,3.95030579,59047.0,59046.0,0.00043673]
[1725126593375,3.82424779,59047.0,59046.0,0.00043673]
[1725126593573,3.72330779,59047.0,59046.0,0.00043673]
[1725126593784,3.73130779,59047.0,59046.0,0.00043673]
[1725126594010,2.08902215,59047.0,59046.0,0.00043673]
[1725126594236,2.09802215,59047.0,59046.0,0.00043673]
[1725126600069,1.185796,59032.0,59030.0,0.005]
[1725126600309,1.827721,59032.0,59027.0,0.013998]
[1725126600526,1.585895,59032.0,59027.0,0.013998]
[1725126600749,1.63560006,59032.0,59030.0,0.0607]
[1725126600953,1.63560006,59032.0,59031.0,0.1762]
[1725126601392,1.29980106,59032.0,59031.0,0.1054]
[1725126601813,1.31761668,59032.0,59031.0,0.1054]
[1725126602243,1.29660039,59032.0,59031.0,0.1054]
[1725126603103,1.63639939,59032.0,59031.0,0.1004]
[1725126603321,1.64039939,59032.0,59031.0,0.1004]
[1725126608196,1.64039939,59032.0,59031.0,0.1012998]
[1725126609602,1.80443933,59032.0,59031.0,0.1012998]
[1725126609785,1.64039939,59032.0,59031.0,0.1012998]
[1725126610776,1.64039939,59032.0,59031.0,0.1062998]
[1725126612482,1.64039939,59032.0,59031.0,0.0062998]
[1725126614795,1.30160039,59032.0,59031.0,0.0062998]
[1725126615755,1.30160039,59032.0,59031.0,0.0669998]
[1725126616700,1.29760039,59032.0,59031.0,0.0669998]
[1725126617143,1.29660039,59032.0,59031.0,0.0669998]
[1725126617655,0.95980139,59032.0,59031.0,0.0669998]
[1725126617913,0.95880139,59032.0,59031.0,0.1445998]
[1725126618370,0.95980139,59032.0,59031.0,0.1445998]
[1725126620917,0.96062039,59032.0,59031.0,0.1445998]
[1725126624221,0.96062039,59032.0,59031.0,0.0838998]
[1725126625167,1.29941939,59032.0,59031.0,0.0838998]
[1725126626082,1.29941939,59032.0,59031.0,0.0062998]
[1725126628440,1.29941939,59032.0,59031.0,0.1460998]
[1725126629574,1.29941939,59032.0,59031.0,0.0838998]
[1725126631980,1.29941939,59032.0,59031.0,0.0062998]
[1725126633904,1.49801367,59032.0,59031.0,0.0062998]
[1725126634027,1.36021939,59032.0,59031.0,0.0062998]
[1725126634246,1.69901839,59032.0,59031.0,0.0062998]
[1725126634896,1.36021939,59032.0,59031.0,0.0062998]
[1725126635979,1.29941939,59032.0,59031.0,0.1460998]
[1725126636190,1.32088999,59032.0,59031.0,0.1460998]
[1725126638826,1.32088999,59032.0,59031.0,0.0838998]
[1725126642224,1.31988999,59032.0,59031.0,0.0838998]
[1725126642635,1.32088999,59032.0,59031.0,0.0838998]
[1725126643105,1.31988999,59032.0,59031.0,0.0838998]
[1725126643312,1.32088999,59032.0,59031.0,0.0838998]
[1725126643528,1.31988999,59032.0,59031.0,0.0838998]
[1725126643769,1.32088999,59032.0,59031.0,0.0878998]
[1725126643979,1.31988999,59032.0,59031.0,0.0878998]
[1725126644195,1.31888999,59032.0,59031.0,0.0838998]
[1725126644421,1.31988999,59032.0,59031.0,0.0838998]
[1725126644639,1.32088999,59032.0,59031.0,0.0878998]
[1725126645096,1.38328999,59032.0,59031.0,0.0102998]
[1725126645536,1.38328999,59032.0,59031.0,0.0052998]
[1725126645789,1.38328999,59032.0,59031.0,0.0102998]
[1725126646229,1.38228999,59032.0,59031.0,0.0102998]
[1725126646445,1.38328999,59032.0,59031.0,0.0112998]
[1725126646649,1.38228999,59032.0,59031.0,0.0012998]
[1725126646860,1.72208899,59032.0,59031.0,0.0052998]